[Event "51st Rilton Cup 2023-24"]
[Site "Stockholm"]
[Date "2023.12.27"]
[Round "1.16"]
[White "Sokolovsky, Yahli"]
[Black "Krawczyk, Flawian"]
[Result "1-0"]
[ECO "B08"]
[WhiteElo "2443"]
[BlackElo "2251"]
[Annotator "RC"]
[PlyCount "119"]
[EventDate "2023.12.27"]
[EventType "swiss"]
[EventCountry "SWE"]
[SourceTitle "playchess.com"]
[Source "ChessBase"]
[SourceQuality "1"]
[TimeControl "40/5400+30:1800+30"]

1. e4 {[%emt 0:00:03]} c5 {[%emt 0:00:13]} 2. Nf3 {[%emt 0:00:05]} d6 {[%emt 0:00:04]} 3. d4 {[%emt 0:00:17]} cxd4 {[%emt 0:00:05]} 4. Qxd4 {[%emt 0:00:06]} Nf6 {[%emt 0:01:01]} 5. Nc3 {[%emt 0:00:05]} Nc6 {[%emt 0:00:36]} 6. Qd3 {[%emt 0:00:24]} g6 {[%emt 0:00:42]} 7. Be2 {[%emt 0:00:08]} Bg7 {[%emt 0:00:05]} 8. O-O {[%emt 0:00:20]} O-O {[%emt 0:00:09]} 9. Nd5 {[%emt 0:00:09]} Bg4 {[%emt 0:09:09]} 10. c3 {[%emt 0:00:36]} Nxd5 {[%emt 0:06:43]} 11. exd5 {[%emt 0:00:05]} Ne5 {[%emt 0:01:08]} 12. Nxe5 {[%emt 0:00:06]} Bxe2 {[%emt 0:00:04]} 13. Qxe2 {[%emt 0:00:06]} Bxe5 {[%emt 0:00:22]} 14. a4 {[%emt 0:08:43]} Qc7 {[%emt 0:06:17]} 15. a5 {[%emt 0:06:49]} Bg7 {[%emt 0:15:57]} 16. Ra4 {[%emt 0:02:53]} Rae8 {[%emt 0:07:34]} 17. Be3 {[%emt 0:05:10]} a6 {[%emt 0:01:14]} 18. Qc4 {[%emt 0:06:02]} Rc8 {[%emt 0:04:29]} 19. Qb3 {[%emt 0:04:47]} Qd7 {[%emt 0:02:33]} 20. Rb4 {[%emt 0:01:23]} Rc7 {[%emt 0:00:06]} 21. Rb6 {[%emt 0:07:24]} e5 {[%emt 0:07:11]} 22. dxe6 {[%emt 0:02:09]} fxe6 {[%emt 0:00:21]} 23. Qb4 {[%emt 0:21:58]} d5 {[%emt 0:03:28]} 24. Rd1 {[%emt 0:05:30]} Qf7 {[%emt 0:02:43]} 25. Qd6 {[%emt 0:04:18]} Re8 {[%emt 0:00:35]} 26. Qg3 {[%emt 0:05:52]} Rd7 {[%emt 0:06:25]} 27. f4 {[%emt 0:04:04]} e5 {[%emt 0:03:06]} 28. Rf1 {[%emt 0:02:31]} d4 {[%emt 0:02:59]} 29. fxe5 {[%emt 0:03:54]} Bxe5 {[%emt 0:00:28]} 30. Rxf7 {[%emt 0:07:09]} Bxg3 {[%emt 0:00:54]} 31. Rxd7 {[%emt 0:00:05]} dxe3 {[%emt 0:00:02]} 32. Rbxb7 {[%emt 0:00:06]} e2 {[%emt 0:00:05]} 33. Rg7+ {[%emt 0:00:09]} Kh8 {[%emt 0:00:09]} 34. Rxh7+ {[%emt 0:00:07]} Kg8 {[%emt 0:00:05]} 35. Rhg7+ {[%emt 0:01:18]} Kh8 {[%emt 0:00:10]} 36. Rh7+ {[%emt 0:00:04]} Kg8 {[%emt 0:00:04]} 37. Rbg7+ {[%emt 0:00:04]} Kf8 {[%emt 0:00:06]} 38. Rf7+ {[%emt 0:00:18]} Kg8 {[%emt 0:00:06]} 39. Rfg7+ {[%emt 0:00:10]} Kf8 {[%emt 0:00:08]} 40. Rh8+ {[%emt 0:03:17]} Kxg7 {[%emt 0:00:05]} 41. Rxe8 {[%emt 0:30:04]} e1=Q+ {[%emt 0:30:03]} 42. Rxe1 {[%emt 0:00:06]} Bxe1 {[%emt 0:00:02]} 43. Kf1 {[%emt 0:00:32]} Bd2 {[%emt 0:01:11]} 44. Ke2 {[%emt 0:00:00]} Bf4 {[%emt 0:00:00]} 45. h4 {[%emt 0:00:00]} Kf6 {[%emt 0:00:00]} 46. b4 {[%emt 0:00:00]} Bg3 {[%emt 0:00:00]} 47. Kf3 {[%emt 0:00:00]} Be5 {[%emt 0:00:00]} 48. c4 {[%emt 0:00:00]} Bc3 {[%emt 0:00:00]} 49. b5 {[%emt 0:00:00]} Bxa5 {[%emt 0:00:00]} 50. bxa6 {[%emt 0:00:00]} Bb6 {[%emt 0:00:00]} 51. Ke4 {[%emt 0:00:00]} Ke6 {[%emt 0:00:00]} 52. g4 {[%emt 0:00:00]} Kd6 {[%emt 0:00:00]} 53. h5 {[%emt 0:00:00]} gxh5 {[%emt 0:00:00]} 54. gxh5 {[%emt 0:00:00]} Kc6 {[%emt 0:00:00]} 55. h6 {[%emt 0:00:00]} Ba5 {[%emt 0:00:00]} 56. h7 {[%emt 0:00:00]} Bc3 {[%emt 0:00:00]} 57. c5 {[%emt 0:00:00]} Ba1 {[%emt 0:00:00]} 58. Kf5 {[%emt 0:00:00]} Bb2 {[%emt 0:00:00]} 59. Ke6 {[%emt 0:00:00]} Bd4 {[%emt 0:00:00]} 60. a7 {[%emt 0:00:00]} 1-0

[Event "51st Rilton Cup 2023-24"]
[Site "Stockholm"]
[Date "2023.12.27"]
[Round "1.17"]
[White "Kokoszczynski, Jan"]
[Black "Trost, Edvin"]
[Result "1/2-1/2"]
[ECO "E54"]
[WhiteElo "2250"]
[BlackElo "2434"]
[Annotator "RC"]
[PlyCount "203"]
[EventDate "2023.12.27"]
[EventType "swiss"]
[EventCountry "SWE"]
[SourceTitle "playchess.com"]
[Source "ChessBase"]
[SourceQuality "1"]
[TimeControl "40/5400+30:1800+30"]

1. d4 {[%emt 0:00:04]} Nf6 {[%emt 0:00:05]} 2. c4 {[%emt 0:00:11]} e6 {[%emt 0:00:04]} 3. Nc3 {[%emt 0:00:17]} Bb4 {[%emt 0:00:08]} 4. e3 {[%emt 0:00:34]} O-O {[%emt 0:00:13]} 5. Bd3 {[%emt 0:00:40]} d5 {[%emt 0:02:51]} 6. a3 {[%emt 0:01:50]} Bxc3+ {[%emt 0:00:25]} 7. bxc3 {[%emt 0:00:07]} dxc4 {[%emt 0:00:06]} 8. Bxc4 {[%emt 0:00:47]} c5 {[%emt 0:00:05]} 9. Nf3 {[%emt 0:01:54]} Qc7 {[%emt 0:01:45]} 10. Be2 {[%emt 0:01:29]} b6 {[%emt 0:01:30]} 11. O-O {[%emt 0:02:14]} Ba6 {[%emt 0:03:12]} 12. Bxa6 {[%emt 0:04:26]} Nxa6 {[%emt 0:00:06]} 13. Qe2 {[%emt 0:01:41]} Nb8 {[%emt 0:03:46]} 14. e4 {[%emt 0:09:39]} cxd4 {[%emt 0:01:24]} 15. cxd4 {[%emt 0:00:32]} Nbd7 {[%emt 0:00:07]} 16. Re1 {[%emt 0:06:38]} Rac8 {[%emt 0:02:30]} 17. a4 {[%emt 0:04:43]} Qc4 {[%emt 0:04:21]} 18. Ba3 {[%emt 0:08:42]} Rfe8 {[%emt 0:00:26]} 19. Qe3 {[%emt 0:07:31]} Qc3 {[%emt 0:12:51]} 20. Qf4 {[%emt 0:05:21]} h6 {[%emt 0:02:35]} 21. h3 {[%emt 0:04:52]} e5 {[%emt 0:07:28]} 22. dxe5 {[%emt 0:09:44]} Nxe5 {[%emt 0:00:47]} 23. Rec1 {[%emt 0:18:43]} Nxf3+ {[%emt 0:02:43]} 24. gxf3 {[%emt 0:00:43]} Qd4 {[%emt 0:08:32]} 25. Rd1 {[%emt 0:00:39]} Qxa4 {[%emt 0:04:36]} 26. Bb2 {[%emt 0:00:51]} Nh5 {[%emt 0:00:15]} 27. Qxf7+ {[%emt 0:05:31]} Kxf7 {[%emt 0:00:08]} 28. Rxa4 {[%emt 0:00:02]} Re7 {[%emt 0:00:23]} 29. e5 {[%emt 0:02:51]} Rc2 {[%emt 0:03:31]} 30. Bc1 {[%emt 0:01:21]} Rcc7 {[%emt 0:13:48]} 31. f4 {[%emt 0:00:43]} Red7 {[%emt 0:00:11]} 32. Re1 {[%emt 0:00:31]} Ke6 {[%emt 0:00:14]} 33. Be3 {[%emt 0:00:31]} g6 {[%emt 0:00:45]} 34. Rea1 {[%emt 0:00:33]} Kf5 {[%emt 0:02:09]} 35. Kg2 {[%emt 0:00:25]} Ng7 {[%emt 0:00:10]} 36. Kf3 {[%emt 0:00:27]} Ne6 {[%emt 0:00:02]} 37. R1a2 {[%emt 0:00:33]} Rb7 {[%emt 0:01:57]} 38. R2a3 {[%emt 0:00:31]} Rdc7 {[%emt 0:03:32]} 39. h4 {[%emt 0:00:31]} b5 {[%emt 0:02:30]} 40. Rb4 {[%emt 0:00:31]} Rc4 {[%emt 0:03:34]} 41. Rxc4 {[%emt 0:30:32]} bxc4 {[%emt 0:31:12]} 42. Rxa7 {[%emt 0:00:00]} Rxa7 {[%emt 0:00:00]} 43. Bxa7 {[%emt 0:00:00]} c3 {[%emt 0:00:00]} 44. Be3 {[%emt 0:00:00]} c2 {[%emt 0:00:00]} 45. Ke2 {[%emt 0:00:00]} Nxf4+ {[%emt 0:00:00]} 46. Kd2 {[%emt 0:00:00]} Kxe5 {[%emt 0:00:00]} 47. f3 {[%emt 0:00:00]} h5 {[%emt 0:00:00]} 48. Kxc2 {[%emt 0:00:00]} Ng2 {[%emt 0:00:00]} 49. Kd3 {[%emt 0:00:00]} Nxh4 {[%emt 0:00:00]} 50. Ke2 {[%emt 0:00:00]} Ng2 {[%emt 0:00:00]} 51. Ba7 {[%emt 0:00:00]} Nh4 {[%emt 0:00:00]} 52. Kf2 {[%emt 0:00:00]} Nf5 {[%emt 0:00:00]} 53. Bb6 {[%emt 0:00:00]} Kd5 {[%emt 0:00:00]} 54. Bd8 {[%emt 0:00:00]} Kd4 {[%emt 0:00:00]} 55. Bf6+ {[%emt 0:00:00]} Kd3 {[%emt 0:00:00]} 56. Bd8 {[%emt 0:00:00]} Nd4 {[%emt 0:00:00]} 57. Be7 {[%emt 0:01:04]} Ne2 {[%emt 0:00:00]} 58. Bd8 {[%emt 0:01:15]} Nf4 {[%emt 0:00:00]} 59. Be7 {[%emt 0:01:01]} Kc2 {[%emt 0:00:20]} 60. Bd8 {[%emt 0:01:27]} Kd1 {[%emt 0:09:28]} 61. Be7 {[%emt 0:01:01]} Nd3+ {[%emt 0:04:44]} 62. Ke3 {[%emt 0:00:26]} Ne5 {[%emt 0:00:01]} 63. Kf2 {[%emt 0:00:52]} Kd2 {[%emt 0:00:15]} 64. Bg5+ {[%emt 0:00:18]} Kd3 {[%emt 0:00:02]} 65. Bf6 {[%emt 0:00:28]} Nf7 {[%emt 0:00:28]} 66. Be7 {[%emt 0:00:09]} Nh6 {[%emt 0:01:09]} 67. Bg5 {[%emt 0:00:28]} Nf5 {[%emt 0:00:04]} 68. Bd8 {[%emt 0:00:14]} Kd4 {[%emt 0:03:07]} 69. Bf6+ {[%emt 0:00:10]} Kd5 {[%emt 0:00:01]} 70. Bd8 {[%emt 0:00:14]} Ke6 {[%emt 0:00:01]} 71. Bg5 {[%emt 0:00:50]} Nd4 {[%emt 0:00:03]} 72. Bd8 {[%emt 0:00:53]} Nc6 {[%emt 0:00:01]} 73. Bc7 {[%emt 0:00:17]} Kf5 {[%emt 0:00:04]} 74. Bd6 {[%emt 0:00:36]} Ne5 {[%emt 0:00:08]} 75. Bc7 {[%emt 0:03:32]} Nd3+ {[%emt 0:01:05]} 76. Ke3 {[%emt 0:00:22]} Nb4 {[%emt 0:00:05]} 77. Kf2 {[%emt 0:00:20]} Nd5 {[%emt 0:00:01]} 78. Bb8 {[%emt 0:00:33]} Ke6 {[%emt 0:02:36]} 79. Bh2 {[%emt 0:00:41]} Nc3 {[%emt 0:00:01]} 80. Bb8 {[%emt 0:00:10]} Kd5 {[%emt 0:00:01]} 81. Bc7 {[%emt 0:00:40]} Kd4 {[%emt 0:00:02]} 82. Bd8 {[%emt 0:01:01]} Kd3 {[%emt 0:02:48]} 83. Bg5 {[%emt 0:00:05]} Nd1+ {[%emt 0:01:58]} 84. Ke1 {[%emt 0:00:07]} Ne3 {[%emt 0:00:04]} 85. Kf2 {[%emt 0:00:02]} Nf5 {[%emt 0:01:54]} 86. Bd8 {[%emt 0:00:04]} Kd4 {[%emt 0:01:35]} 87. Bf6+ {[%emt 0:00:05]} Kd5 {[%emt 0:00:01]} 88. Bd8 {[%emt 0:00:05]} Nd4 {[%emt 0:00:08]} 89. Bc7 {[%emt 0:00:35]} Ke6 {[%emt 0:00:06]} 90. Bb6 {[%emt 0:00:32]} Ke5 91. Bc7+ Kf5 92. Bd6 Ne6 93. Bb8 g5 94. Bd6 Nf4 95. Bb8 Ke6 96. Bc7 Kf6 97. Bb8 Kf5 98. Bc7 Ke6 99. Bd8 Kf5 100. Bc7 Ne6 101. Bd6 Kf6 102. Bb8 1/2-1/2

[Event "51st Rilton Cup 2023-24"]
[Site "Stockholm"]
[Date "2023.12.27"]
[Round "1.18"]
[White "Malek, Jan"]
[Black "Xylogiannopoulos, Antonios"]
[Result "*"]
[ECO "D10"]
[WhiteElo "2434"]
[BlackElo "2248"]
[Annotator "RC"]
[PlyCount "116"]
[EventDate "2023.12.27"]
[EventType "swiss"]
[EventCountry "SWE"]
[SourceTitle "playchess.com"]
[Source "ChessBase"]
[SourceQuality "1"]
[TimeControl "40/5400+30:1800+30"]

1. d4 {[%emt 0:00:05]} d5 {[%emt 0:00:17]} 2. c4 {[%emt 0:00:12]} c6 {[%emt 0:00:01]} 3. cxd5 {[%emt 0:01:23]} cxd5 {[%emt 0:00:08]} 4. Bg5 {[%emt 0:00:14]} h6 {[%emt 0:02:20]} 5. Bh4 {[%emt 0:00:36]} Qb6 {[%emt 0:01:15]} 6. Qd2 {[%emt 0:06:21]} Nc6 {[%emt 0:18:05]} 7. Nc3 {[%emt 0:04:48]} g5 {[%emt 0:10:39]} 8. Bg3 {[%emt 0:00:36]} Nf6 {[%emt 0:00:12]} 9. e3 {[%emt 0:01:33]} Bf5 {[%emt 0:01:30]} 10. h4 {[%emt 0:09:45]} Ne4 {[%emt 0:13:47]} 11. Nxe4 {[%emt 0:15:21]} Bxe4 {[%emt 0:00:19]} 12. f3 {[%emt 0:00:46]} Bf5 {[%emt 0:10:08]} 13. Ne2 {[%emt 0:12:43]} e5 {[%emt 0:08:31]} 14. Nc3 {[%emt 0:07:38]} O-O-O {[%emt 0:08:43]} 15. Na4 {[%emt 0:11:44]} Qb4 {[%emt 0:00:30]} 16. Qxb4 {[%emt 0:00:21]} Bxb4+ {[%emt 0:00:02]} 17. Kf2 {[%emt 0:00:11]} exd4 {[%emt 0:01:10]} 18. exd4 {[%emt 0:00:06]} Rhe8 {[%emt 0:00:12]} 19. hxg5 {[%emt 0:05:03]} Bd2 {[%emt 0:00:57]} 20. Bb5 {[%emt 0:00:12]} Be3+ {[%emt 0:00:44]} 21. Kf1 {[%emt 0:00:06]} Nxd4 {[%emt 0:00:53]} 22. Be2 {[%emt 0:05:41]} Nxe2 {[%emt 0:02:54]} 23. Kxe2 {[%emt 0:00:02]} Bxg5+ {[%emt 0:00:36]} 24. Kd1 {[%emt 0:00:22]} Be3 {[%emt 0:02:42]} 25. Be1 {[%emt 0:02:24]} Rd6 {[%emt 0:02:19]} 26. Bd2 {[%emt 0:01:06]} d4 {[%emt 0:01:49]} 27. Rc1+ {[%emt 0:00:49]} Kb8 {[%emt 0:00:14]} 28. b3 {[%emt 0:03:25]} Rde6 {[%emt 0:01:33]} 29. Re1 {[%emt 0:01:00]} Bxd2 {[%emt 0:02:57]} 30. Rxe6 {[%emt 0:00:55]} Rxe6 {[%emt 0:01:29]} 31. Kxd2 {[%emt 0:00:06]} Rc6 {[%emt 0:03:09]} 32. Nc5 {[%emt 0:03:35]} h5 {[%emt 0:00:54]} 33. Nd3 {[%emt 0:01:22]} Bxd3 {[%emt 0:04:33]} 34. Rxc6 {[%emt 0:00:05]} bxc6 {[%emt 0:00:03]} 35. Kxd3 {[%emt 0:00:05]} c5 {[%emt 0:00:04]} 36. b4 {[%emt 0:00:09]} cxb4 {[%emt 0:00:08]} 37. Kxd4 {[%emt 0:00:09]} Kc7 {[%emt 0:00:12]} 38. Kc5 {[%emt 0:00:34]} h4 {[%emt 0:00:20]} 39. Kxb4 {[%emt 0:03:42]} Kd6 {[%emt 0:00:12]} 40. Kc4 {[%emt 0:00:37]} Ke5 {[%emt 0:00:07]} 41. Kd3 {[%emt 0:30:06]} Kf4 {[%emt 0:30:05]} 42. Ke2 {[%emt 0:00:06]} Kg3 {[%emt 0:00:12]} 43. Kf1 {[%emt 0:00:04]} a5 {[%emt 0:01:16]} 44. a4 {[%emt 0:00:09]} f6 {[%emt 0:01:19]} 45. Kg1 {[%emt 0:01:28]} f5 {[%emt 0:00:04]} 46. Kf1 {[%emt 0:00:27]} f4 {[%emt 0:00:17]} 47. Kg1 {[%emt 0:00:06]} h3 {[%emt 0:00:02]} 48. gxh3 {[%emt 0:00:13]} Kxh3 {[%emt 0:00:06]} 49. Kf2 {[%emt 0:00:18]} Kh2 {[%emt 0:00:01]} 50. Ke2 {[%emt 0:00:10]} Kg3 {[%emt 0:00:01]} 51. Ke1 {[%emt 0:00:07]} Kxf3 {[%emt 0:00:14]} 52. Kf1 {[%emt 0:00:04]} Ke3 {[%emt 0:00:04]} 53. Ke1 {[%emt 0:00:04]} Kd3 {[%emt 0:00:04]} 54. Kf2 {[%emt 0:01:06]} Kc3 {[%emt 0:00:01]} 55. Kf3 {[%emt 0:00:07]} Kb3 {[%emt 0:00:01]} 56. Kxf4 {[%emt 0:00:07]} Kxa4 {[%emt 0:00:04]} 57. Ke3 {[%emt 0:00:05]} Kb3 {[%emt 0:00:03]} 58. Kd2 {[%emt 0:00:04]} Kb2 {[%emt 0:00:04]} *

[Event "51st Rilton Cup 2023-24"]
[Site "Stockholm"]
[Date "2023.12.27"]
[Round "1.19"]
[White "Rakshitta Ravi"]
[Black "Terrieux, Kevin"]
[Result "1-0"]
[ECO "D31"]
[WhiteElo "2245"]
[BlackElo "2432"]
[Annotator "RC"]
[PlyCount "63"]
[EventDate "2023.12.27"]
[EventType "swiss"]
[EventCountry "SWE"]
[SourceTitle "playchess.com"]
[Source "ChessBase"]
[SourceQuality "1"]
[TimeControl "40/5400+30:1800+30"]

1. d4 {[%emt 0:00:04]} d5 {[%emt 0:00:39]} 2. c4 {[%emt 0:00:10]} e6 {[%emt 0:00:09]} 3. Nc3 {[%emt 0:01:32]} a6 {[%emt 0:00:17]} 4. cxd5 {[%emt 0:00:10]} exd5 {[%emt 0:00:06]} 5. Nf3 {[%emt 0:07:00]} c6 {[%emt 0:00:43]} 6. e4 {[%emt 0:00:29]} dxe4 {[%emt 0:01:40]} 7. Ng5 {[%emt 0:00:09]} Be7 {[%emt 0:02:54]} 8. Bc4 {[%emt 0:01:56]} Nh6 {[%emt 0:00:20]} 9. Ncxe4 {[%emt 0:02:27]} b5 {[%emt 0:07:01]} 10. Bb3 {[%emt 0:01:20]} O-O {[%emt 0:06:32]} 11. O-O {[%emt 0:00:37]} Bf5 {[%emt 0:03:05]} 12. h3 {[%emt 0:15:52]} Bxe4 {[%emt 0:11:13]} 13. Nxe4 {[%emt 0:00:03]} Nf5 {[%emt 0:00:21]} 14. Qg4 {[%emt 0:21:44]} g6 {[%emt 0:05:35]} 15. Rd1 {[%emt 0:02:32]} Ra7 {[%emt 0:04:22]} 16. Bf4 {[%emt 0:04:12]} Nd7 {[%emt 0:19:19]} 17. Rac1 {[%emt 0:01:03]} Nf6 {[%emt 0:02:38]} 18. Nxf6+ {[%emt 0:02:10]} Bxf6 {[%emt 0:00:19]} 19. Rxc6 {[%emt 0:08:45]} Bxd4 {[%emt 0:07:37]} 20. Bg5 {[%emt 0:21:32]} Qe8 {[%emt 0:05:06]} 21. Rd6 {[%emt 0:04:06]} Bg7 {[%emt 0:08:46]} 22. R6d5 {[%emt 0:00:01]} Qc8 {[%emt 0:02:36]} 23. Qb4 {[%emt 0:01:19]} h6 {[%emt 0:01:35]} 24. Bf4 {[%emt 0:00:22]} Bxb2 {[%emt 0:02:27]} 25. Rc5 {[%emt 0:00:55]} a5 {[%emt 0:01:05]} 26. Qxb5 {[%emt 0:00:34]} Qe8 {[%emt 0:03:00]} 27. Qb6 {[%emt 0:00:32]} Nh4 {[%emt 0:03:17]} 28. Bg3 {[%emt 0:01:55]} Qe4 {[%emt 0:01:12]} 29. Bd5 {[%emt 0:00:23]} Qe2 {[%emt 0:00:13]} 30. Rb1 {[%emt 0:00:11]} Bd4 {[%emt 0:00:35]} 31. Bxh4 {[%emt 0:00:51]} Ra6 {[%emt 0:00:46]} 32. Qb5 {[%emt 0:00:09]} 1-0

[Event "51st Rilton Cup 2023-24"]
[Site "Stockholm"]
[Date "2023.12.27"]
[Round "1.20"]
[White "Malek, Jan"]
[Black "Xylogiannopoulos, Antonios"]
[Result "1-0"]
[ECO "B01"]
[WhiteElo "2434"]
[BlackElo "2248"]
[Annotator "RC"]
[PlyCount "89"]
[EventDate "2023.12.27"]
[EventType "swiss"]
[EventCountry "SWE"]
[SourceTitle "playchess.com"]
[Source "ChessBase"]
[SourceQuality "1"]
[TimeControl "40/5400+30:1800+30"]

1. e4 {[%emt 0:00:02]} d5 {[%emt 0:00:14]} 2. exd5 {[%emt 0:00:07]} Qxd5 {[%emt 0:00:07]} 3. Nc3 {[%emt 0:00:09]} Qd8 {[%emt 0:00:06]} 4. d4 {[%emt 0:00:42]} Nf6 {[%emt 0:00:07]} 5. Nf3 {[%emt 0:03:13]} Bg4 {[%emt 0:00:20]} 6. h3 {[%emt 0:09:57]} Bxf3 {[%emt 0:00:27]} 7. Qxf3 {[%emt 0:00:03]} c6 {[%emt 0:00:08]} 8. Bd2 {[%emt 0:02:21]} e6 {[%emt 0:02:49]} 9. O-O-O {[%emt 0:00:36]} Be7 {[%emt 0:00:58]} 10. g4 {[%emt 0:02:41]} Nbd7 {[%emt 0:06:29]} 11. g5 {[%emt 0:06:16]} Nd5 {[%emt 0:00:03]} 12. Ne4 {[%emt 0:07:25]} b5 {[%emt 0:01:03]} 13. h4 {[%emt 0:00:20]} Qc7 {[%emt 0:08:21]} 14. h5 {[%emt 0:02:59]} Rf8 {[%emt 0:08:17]} 15. g6 {[%emt 0:11:46]} fxg6 {[%emt 0:05:10]} 16. Qg4 {[%emt 0:00:09]} N7f6 {[%emt 0:20:40]} 17. Qxe6 {[%emt 0:06:55]} Nxe4 {[%emt 0:12:04]} 18. Qxe4 {[%emt 0:01:10]} O-O-O {[%emt 0:04:14]} 19. hxg6 {[%emt 0:01:58]} h6 {[%emt 0:04:32]} 20. f3 {[%emt 0:12:48]} Nb6 {[%emt 0:09:42]} 21. Rh5 {[%emt 0:01:45]} Bd6 {[%emt 0:00:52]} 22. Kb1 {[%emt 0:03:18]} Rde8 {[%emt 0:02:07]} 23. Qg4+ {[%emt 0:00:45]} Qd7 {[%emt 0:01:20]} 24. Bd3 {[%emt 0:02:49]} Qxg4 {[%emt 0:01:23]} 25. fxg4 {[%emt 0:00:02]} Bf4 {[%emt 0:00:59]} 26. c3 {[%emt 0:12:03]} Bxd2 {[%emt 0:00:27]} 27. Rxd2 {[%emt 0:00:01]} Re1+ {[%emt 0:05:03]} 28. Kc2 {[%emt 0:00:04]} Rg1 {[%emt 0:00:19]} 29. Rf5 {[%emt 0:01:15]} Rxf5 {[%emt 0:00:48]} 30. Bxf5+ {[%emt 0:00:17]} Kd8 {[%emt 0:00:16]} 31. Re2 {[%emt 0:00:42]} Nc4 {[%emt 0:01:41]} 32. Kb3 {[%emt 0:06:05]} a5 {[%emt 0:00:42]} 33. a4 {[%emt 0:00:33]} Ra1 {[%emt 0:01:29]} 34. Re6 {[%emt 0:01:52]} Rc1 {[%emt 0:01:21]} 35. Re2 {[%emt 0:01:46]} Ra1 {[%emt 0:01:51]} 36. axb5 {[%emt 0:00:40]} cxb5 {[%emt 0:00:03]} 37. Bd3 {[%emt 0:00:06]} Nd6 {[%emt 0:00:27]} 38. Re5 {[%emt 0:01:13]} a4+ {[%emt 0:01:01]} 39. Kb4 {[%emt 0:00:12]} Ra2 {[%emt 0:00:14]} 40. Kc5 {[%emt 0:00:10]} Nc4 {[%emt 0:01:14]} 41. Rd5+ {[%emt 0:06:29]} Ke7 {[%emt 0:02:05]} 42. Rf5 {[%emt 0:01:16]} Rxb2 {[%emt 0:02:22]} 43. Rf7+ {[%emt 0:00:08]} Ke8 {[%emt 0:00:26]} 44. Rxg7 {[%emt 0:00:40]} Kf8 {[%emt 0:01:51]} 45. Ra7 {[%emt 0:00:44]} 1-0

[Event "51st Rilton Cup 2023-24"]
[Site "Stockholm"]
[Date "2023.12.28"]
[Round "2.1"]
[White "Moksh Amit Doshi"]
[Black "Kulaots, Kaido"]
[Result "0-1"]
[ECO "E04"]
[WhiteElo "2366"]
[BlackElo "2524"]
[Annotator "ChessBase"]
[PlyCount "140"]
[EventDate "2023.12.27"]
[EventType "swiss"]
[EventCountry "SWE"]
[SourceTitle "playchess.com"]
[Source "ChessBase"]
[SourceQuality "1"]
[TimeControl "40/5400+30:1800+30"]

1. d4 {[%emt 0:00:20]} Nf6 {[%emt 0:00:28]} 2. c4 {[%emt 0:01:28]} e6 {[%emt 0:00:31]} 3. Nf3 {[%emt 0:00:08]} d5 {[%emt 0:00:29]} 4. g3 {[%emt 0:00:12]} dxc4 {[%emt 0:05:56]} 5. Bg2 {[%emt 0:00:32]} c5 {[%emt 0:00:41]} 6. O-O {[%emt 0:00:54]} Nc6 {[%emt 0:00:22]} 7. dxc5 {[%emt 0:03:37]} Qxd1 {[%emt 0:00:32]} 8. Rxd1 {[%emt 0:00:13]} Bxc5 {[%emt 0:00:09]} 9. Nbd2 {[%emt 0:03:52]} c3 {[%emt 0:00:37]} 10. bxc3 {[%emt 0:00:06]} O-O {[%emt 0:03:36]} 11. Nb3 {[%emt 0:00:17]} Be7 {[%emt 0:00:10]} 12. c4 {[%emt 0:01:04]} Bd7 {[%emt 0:01:18]} 13. Bb2 {[%emt 0:00:10]} Rfc8 {[%emt 0:02:27]} 14. Rac1 {[%emt 0:04:50]} Be8 {[%emt 0:17:45]} 15. Nfd4 {[%emt 0:05:07]} Nxd4 {[%emt 0:30:41]} 16. Nxd4 {[%emt 0:07:25]} Rd8 {[%emt 0:07:52]} 17. Ba1 {[%emt 0:25:50]} Rab8 {[%emt 0:09:30]} 18. Rd3 {[%emt 0:08:50]} Nd7 {[%emt 0:03:30]} 19. Nb5 {[%emt 0:03:01]} Nc5 {[%emt 0:00:48]} 20. Rxd8 {[%emt 0:08:07]} Rxd8 {[%emt 0:00:08]} 21. Nd4 {[%emt 0:08:18]} Rc8 {[%emt 0:05:08]} 22. Nb3 {[%emt 0:01:18]} b6 {[%emt 0:01:06]} 23. Bd4 {[%emt 0:00:37]} Ba4 {[%emt 0:02:03]} 24. Nxc5 {[%emt 0:02:58]} Bxc5 {[%emt 0:00:13]} 25. Bxc5 {[%emt 0:01:38]} Rxc5 {[%emt 0:00:12]} 26. Be4 {[%emt 0:00:24]} Kf8 {[%emt 0:01:47]} 27. Kf1 {[%emt 0:01:34]} Ke7 {[%emt 0:02:20]} 28. Ke1 {[%emt 0:00:23]} Bb5 {[%emt 0:00:26]} 29. Bd3 {[%emt 0:00:19]} Bc6 {[%emt 0:00:05]} 30. Rc3 {[%emt 0:01:42]} Ra5 {[%emt 0:01:17]} 31. a3 {[%emt 0:00:07]} h6 {[%emt 0:00:15]} 32. h4 {[%emt 0:01:01]} g5 {[%emt 0:01:16]} 33. hxg5 {[%emt 0:00:07]} hxg5 {[%emt 0:00:04]} 34. Kd2 {[%emt 0:02:11]} Kd6 {[%emt 0:02:19]} 35. Kc2 {[%emt 0:03:45]} g4 {[%emt 0:00:42]} 36. Kb2 {[%emt 0:01:07]} Rh5 {[%emt 0:00:25]} 37. Rc2 {[%emt 0:00:09]} Rh2 {[%emt 0:00:52]} 38. e3 {[%emt 0:00:05]} Kc5 {[%emt 0:00:29]} 39. Kc3 {[%emt 0:00:07]} Rh1 {[%emt 0:00:22]} 40. Rd2 {[%emt 0:00:36]} Ra1 {[%emt 0:00:52]} 41. Kb2 {[%emt 0:30:09]} Re1 {[%emt 0:01:30]} 42. Kc3 {[%emt 0:00:00]} f5 {[%emt 0:10:17]} 43. Bc2 {[%emt 0:00:00]} Bf3 {[%emt 0:03:10]} 44. Bd3 {[%emt 0:00:00]} Ra1 {[%emt 0:13:26]} 45. Kb2 {[%emt 0:00:00]} Rh1 {[%emt 0:00:05]} 46. Kc3 {[%emt 0:00:00]} Re1 {[%emt 0:00:34]} 47. Rb2 {[%emt 0:00:00]} Rc1+ {[%emt 0:00:43]} 48. Rc2 {[%emt 0:00:00]} Ra1 {[%emt 0:00:40]} 49. Rd2 {[%emt 0:00:00]} Rxa3+ {[%emt 0:00:19]} 50. Kb2 {[%emt 0:00:00]} Ra4 {[%emt 0:00:27]} 51. Kb3 {[%emt 0:00:00]} Rb4+ {[%emt 0:00:30]} 52. Kc3 {[%emt 0:00:00]} a5 {[%emt 0:00:15]} 53. Ra2 {[%emt 0:00:00]} Be4 {[%emt 0:01:29]} 54. Be2 {[%emt 0:00:00]} Rb1 {[%emt 0:00:16]} 55. Rd2 {[%emt 0:00:00]} Rc1+ {[%emt 0:02:55]} 56. Kb2 {[%emt 0:00:00]} Rh1 {[%emt 0:00:19]} 57. Kc3 {[%emt 0:00:00]} Ra1 {[%emt 0:01:01]} 58. Rb2 {[%emt 0:00:00]} Rc1+ {[%emt 0:00:36]} 59. Kd2 {[%emt 0:00:00]} Rb1 {[%emt 0:00:11]} 60. Rxb1 {[%emt 0:00:00]} Bxb1 {[%emt 0:00:05]} 61. Kc3 {[%emt 0:00:00]} Be4 {[%emt 0:00:36]} 62. Bd1 {[%emt 0:00:00]} Bf3 {[%emt 0:00:58]} 63. Ba4 {[%emt 0:00:00]} Be2 {[%emt 0:00:55]} 64. Bb5 {[%emt 0:00:06]} Bf1 {[%emt 0:00:38]} 65. Kb3 {[%emt 0:00:14]} Bg2 {[%emt 0:00:13]} 66. Bd7 {[%emt 0:00:25]} Kd6 {[%emt 0:00:06]} 67. Bc8 {[%emt 0:00:27]} Bc6 {[%emt 0:00:28]} 68. Kc3 {[%emt 0:00:10]} Bd7 {[%emt 0:00:41]} 69. Bb7 {[%emt 0:00:15]} e5 {[%emt 0:00:51]} 70. Ba6 {[%emt 0:00:55]} Kc7 {[%emt 0:00:28]} 0-1